bitfinex-derivatives/quotes_SOLF0:USTF0_20241017
["timestamp","ask_amount","ask_price","bid_price","bid_amount"]
[1729205539859,3.3128,150.95,150.93,10.2]
[1729205543556,3.3128,150.95,150.85,2.843]
[1729205543858,3.3136,150.92,150.89,10.2]
[1729205544455,3.3136,150.92,150.89,13.514]
[1729205545359,3.3136,150.92,150.91,10.2]
[1729205546060,14.9,150.96,150.91,10.2]
[1729205546262,3.3132,150.94,150.92,10.2]
[1729205546454,14.9,150.96,150.9,3.3137]
[1729205546660,14.9,150.96,150.91,10.2]
[1729205547055,3.3129,150.95,150.91,10.2]
[1729205547362,14.9,150.96,150.91,10.2]
[1729205548860,3.3131,150.94,150.91,10.2]
[1729205557161,3.3131,150.94,150.92,10.2]
[1729205559869,3.3129,150.95,150.92,13.5134]
[1729205560072,4.7,150.96,150.92,10.2]
[1729205561070,4.66,150.96,150.92,10.2]
[1729205561472,3.3129,150.95,150.92,13.5134]
[1729205568180,4.66,150.98,150.93,13.5131]
[1729205569881,3.3127,150.96,150.93,13.5131]
[1729205579992,3.3127,150.96,150.93,3.3131]
[1729205580388,10.2,150.97,150.92,13.53654099]
[1729205580589,10.2,150.97,150.92,3.33654099]
[1729205580796,10.2,150.97,150.92,10.2]
[1729205581093,10.2,150.95,150.91,13.5136]
[1729205581497,14.82,150.95,150.91,13.5136]
[1729205581899,3.3132,150.94,150.91,13.5136]
[1729205587307,3.3136,150.92,150.89,18.134]
[1729205588103,3.3136,150.92,150.89,7.934]
[1729205589007,3.3138,150.91,150.88,10.2]
[1729205590008,3.3138,150.91,150.88,13.5143]
[1729205595210,3.3138,150.91,150.88,3.3143]
[1729205601515,3.3138,150.91,150.85,4.62]
[1729205601516,10.2,150.91,150.85,4.62]
[1729205601816,3.3141,150.9,150.86,13.5146]
[1729205602018,3.3141,150.9,150.86,10.2]
[1729205602316,10.2,150.89,150.85,3.3148]
[1729205602524,10.2,150.89,150.83,129.71627171]
[1729205602819,10.2,150.89,150.84,10.2]
[1729205603021,10.2,150.89,150.85,3.32681703]
[1729205603423,3.3144,150.88,150.85,6.64171703]
[1729205604819,3.3146,150.87,150.85,6.64171703]
[1729205605710,10.2,150.89,150.85,6.64171703]
[1729205606023,3.3144,150.88,150.85,6.64171703]
[1729205606924,3.3144,150.88,150.85,16.84171703]
[1729205608126,3.3144,150.88,150.85,13.5149]
[1729205608728,3.3144,150.88,150.85,16.81629753]
[1729205612526,3.3144,150.88,150.85,13.50139753]
[1729205612728,3.3144,150.88,150.86,13.5147]
[1729205617325,3.3144,150.88,150.85,3.3149]
[1729205617534,3.3144,150.88,150.85,13.5149]
[1729205617833,3.3144,150.88,150.85,16.85143994]
[1729205618432,10.2,150.91,150.85,13.5149]
[1729205618832,3.3145,150.88,150.85,13.5149]
[1729205619225,3.3143,150.89,150.86,13.5147]
[1729205620826,4.62,150.92,150.86,13.5147]
[1729205620827,3.314,150.9,150.87,3.3144]
[1729205641947,3.3141,150.89,150.86,13.5147]
[1729205651357,4.62,150.92,150.85,10.2]
[1729205651358,3.3145,150.88,150.85,10.2]
[1729205653952,3.3139,150.9,150.86,3.3146]
[1729205654156,13.5139,150.9,150.86,3.3146]
[1729205654659,10.2,150.9,150.86,3.3146]
[1729205654859,3.3142,150.89,150.86,3.3146]
[1729205674187,4.6,150.91,150.86,10.2]
[1729205674488,4.6,150.91,150.88,10.2]
[1729205674489,7.9138,150.91,150.88,10.2]
[1729205675190,7.9138,150.91,150.88,13.5142]
[1729205676589,3.3138,150.91,150.88,13.5142]
[1729205681190,3.3131,150.94,150.91,3.3135]
[1729205681496,3.3131,150.94,150.92,10.2]
[1729205709223,3.3131,150.94,150.93,10.2]
[1729205709419,3.3128,150.95,150.93,10.2]
[1729205711507,108.69352368,150.97,150.93,10.2]
[1729205711715,3.3126,150.96,150.94,10.2]
[1729205713533,108.69352368,150.97,150.89,5.9496]
[1729205713534,3.3132,150.93,150.89,5.9496]
[1729205713827,10.2,150.93,150.87,4.6]
[1729205714018,10.2,150.93,150.88,10.2]
[1729205714218,2.7636,150.94,150.86,10.2]
[1729205714219,10.2,150.91,150.86,10.2]
[1729205714817,10.2,150.9,150.84,3.37809526]
[1729205715024,10.2,150.88,150.84,3.37809526]
[1729205715219,10.2,150.88,150.83,139.91627171]
[1729205715420,10.2,150.88,150.83,143.23157171]
[1729205715421,3.3147,150.87,150.83,143.23157171]
[1729205715724,3.3147,150.87,150.83,146.62989112]
[1729205717129,10.2,150.88,150.83,139.91627171]
[1729205717333,3.3148,150.86,150.83,139.91627171]
[1729205719731,3.3148,150.86,150.83,129.71627171]
[1729205720043,3.3148,150.86,150.83,139.91627171]
[1729205722850,3.3148,150.86,150.83,10.2]
[1729205723935,10.2,150.87,150.82,16.86385636]
[1729205724143,13.5153,150.84,150.81,3.3157]
[1729205724343,13.5153,150.84,150.81,6.56756703]
[1729205724545,10.2,150.84,150.81,3.25186703]
[1729205724746,10.2,150.84,150.79,10.2]
[1729205725042,3.3155,150.83,150.8,3.316]
[1729205725238,3.3155,150.83,150.81,3.3699238]
[1729205725450,10.2,150.84,150.81,3.3699238]
[1729205725651,13.5153,150.84,150.81,3.3699238]
[1729205727253,10.2,150.84,150.8,3.316]
[1729205727457,3.3155,150.83,150.8,13.516]
[1729205727644,10.2,150.84,150.8,13.516]
[1729205727946,14.8,150.86,150.81,10.2]
[1729205728249,4.6,150.87,150.83,10.2]
[1729205728452,3.3149,150.86,150.83,10.2]
[1729205728755,3.3149,150.86,150.83,13.5153]
[1729205728944,3.3149,150.86,150.83,16.77842808]
[1729205729454,14.8,150.87,150.78,4.6]
[1729205729646,3.3151,150.85,150.81,13.5157]
[1729205729852,10.2,150.85,150.8,3.36097549]
[1729205730044,13.5154,150.84,150.8,3.316]
[1729205731749,3.3155,150.83,150.8,3.316]
[1729205733356,3.3155,150.83,150.8,13.516]
[1729205737563,10.2,150.85,150.8,10.2]
[1729205737860,3.3152,150.85,150.82,3.3157]
[1729205738260,3.3152,150.85,150.82,13.5157]
[1729205738771,3.3152,150.84,150.82,13.5157]
[1729205739156,3.3152,150.84,150.82,3.3157]
[1729205739358,3.3152,150.84,150.81,13.5157]
[1729205741767,3.3152,150.84,150.82,3.3157]
[1729205744064,3.3148,150.86,150.84,3.3152]
[1729205750978,10.2,150.88,150.84,3.3152]
[1729205750979,3.3146,150.87,150.84,3.3152]
[1729205752581,3.3146,150.87,150.84,13.5152]
[1729205754395,7.9143,150.89,150.85,3.3149]
[1729205754596,10.2,150.89,150.85,3.3149]
[1729205754786,10.2,150.88,150.85,3.3149]
[1729205755480,13.5145,150.88,150.85,3.3149]
[1729205760185,3.3145,150.88,150.85,13.5149]
[1729205771214,10.2,150.89,150.86,3.3146]
[1729205771404,7.914,150.9,150.86,13.5146]
[1729205772103,4.6,150.9,150.86,13.5146]
[1729205772303,3.3141,150.89,150.86,13.5146]
[1729205773510,118.77444023,150.93,150.88,10.2]
[1729205773809,118.77444023,150.93,150.89,3.38760306]
[1729205773810,114.17444023,150.93,150.89,3.38760306]
[1729205774008,114.17444023,150.93,150.9,13.5138]
[1729205775714,117.48774023,150.93,150.9,13.5138]
[1729205777011,117.48774023,150.93,150.89,13.5139]
[1729205777208,114.17444023,150.93,150.89,13.5139]
[1729205778909,3.3135,150.92,150.89,13.5139]
[1729205779418,3.3135,150.92,150.89,3.3139]
[1729205781303,3.3138,150.91,150.88,16.82133804]
[1729205782817,3.3135,150.92,150.9,3.3138]
[1729205783019,114.17444023,150.93,150.9,3.3138]
[1729205783515,117.48794023,150.93,150.9,3.3138]
[1729205786427,117.48794023,150.93,150.9,13.5138]
[1729205790722,114.17444023,150.93,150.91,3.3136]
[1729205796526,114.17444023,150.93,150.92,3.3135]
[1729205797835,3.3131,150.94,150.92,3.3135]
[1729205800135,3.3135,150.92,150.9,3.3138]
[1729205800337,3.3135,150.92,150.88,13.50703804]
[1729205800533,3.3135,150.92,150.88,10.2]
[1729205801235,3.3135,150.92,150.89,6.58413958]
[1729205803637,10.2,150.92,150.88,3.3142]
[1729205804038,10.2,150.92,150.88,6.59306059]
[1729205804239,3.3139,150.91,150.88,6.59306059]
[1729205804535,3.3139,150.91,150.85,4.6]
[1729205804536,10.2,150.9,150.81,2.8408]
[1729205804743,10.2,150.89,150.84,10.2]
[1729205805637,3.3145,150.88,150.85,3.3149]
[1729205809044,3.3145,150.88,150.86,3.3148]
[1729205816151,3.3145,150.88,150.85,10.2]
[1729205816353,3.3145,150.88,150.85,13.5149]
[1729205818255,3.3146,150.87,150.85,3.3149]
[1729205820649,3.3144,150.88,150.85,3.3149]
[1729205822254,13.5144,150.88,150.85,3.3149]
[1729205822552,13.5147,150.87,150.84,3.3151]
[1729205826364,7.9143,150.89,150.85,10.2]
[1729205826955,4.6,150.89,150.85,10.2]
[1729205827165,3.3145,150.88,150.85,13.515]
[1729205835260,7.9142,150.89,150.86,3.3146]
[1729205837464,3.3142,150.89,150.86,3.3146]
[1729205843173,3.3143,150.88,150.86,3.3146]
[1729205846567,3.3143,150.89,150.86,3.3146]
[1729205848674,3.314,150.9,150.87,3.3146]
[1729205850975,3.3136,150.92,150.88,13.5141]
[1729205851173,3.3136,150.92,150.89,13.57301418]
[1729205851377,114.16240063,150.94,150.9,10.2]
[1729205851574,117.47550063,150.94,150.91,3.3137]
[1729205851776,117.47550063,150.94,150.92,10.2]
[1729205855781,117.47550063,150.94,150.91,3.3137]
[1729205858683,117.47550063,150.94,150.91,13.5137]
[1729205859373,4.6,150.96,150.92,10.2]
[1729205859577,1.3923,150.97,150.92,10.2]
[1729205859578,5.9923,150.97,150.92,10.2]
[1729205860183,3.313,150.95,150.92,13.5134]
[1729205862590,3.313,150.95,150.93,3.3132]
[1729205867489,3.313,150.95,150.94,10.2]
[1729205867881,4.6,150.98,150.94,10.2]
[1729205868089,3.3126,150.96,150.94,10.2]
[1729205868290,3.3126,150.96,150.94,13.513]
[1729205868483,3.3126,150.96,150.94,10.2]
[1729205872091,3.3128,150.96,150.94,10.2]
[1729205872298,3.3128,150.96,150.93,13.5132]
[1729205872595,10.2,150.97,150.93,10.2]
[1729205872893,3.3126,150.96,150.93,10.2]
[1729205874903,3.3128,150.95,150.93,10.2]
[1729205876594,10.2,150.95,150.9,13.56406192]
[1729205877889,3.3134,150.93,150.9,16.87796192]
[1729205878691,3.3145,150.88,150.85,3.315]
[1729205878890,3.3145,150.88,150.86,10.2]
[1729205879697,10.2,150.92,150.87,13.5144]
[1729205879999,10.2,150.92,150.88,3.24205327]
[1729205880186,3.3137,150.91,150.88,3.24205327]
[1729205880386,7.4743,150.94,150.89,3.314]
[1729205880599,17.6743,150.94,150.89,3.314]
[1729205880895,3.3133,150.93,150.89,3.314]
[1729205881103,3.3133,150.93,150.9,10.2]
[1729205888200,3.3133,150.93,150.91,10.2]
[1729205889501,4.6,150.94,150.91,13.5136]
[1729205889502,7.913,150.94,150.91,13.5136]
[1729205893012,3.313,150.94,150.91,13.5136]
[1729205896212,3.313,150.94,150.93,10.2]
[1729205905917,3.3129,150.95,150.93,10.2]
[1729205906120,4.6,150.97,150.93,13.5132]
[1729205906417,4.6,150.98,150.96,10.2]
[1729205906622,7.9122,150.98,150.96,10.2]
[1729205908025,1.4191,151.0,150.97,13.5124]
[1729205908726,4.7309,151.0,150.97,13.5124]
[1729205908916,4.7309,151.0,150.97,10.2]
[1729205909117,1.4191,151.0,150.97,10.2]
[1729205909317,3.312,150.99,150.97,10.2]
[1729205909520,3.312,150.99,150.96,6.6763211]
[1729205909825,3.312,150.99,150.96,16.8763211]
[1729205912728,3.3118,151.0,150.97,3.3124]
[1729205913624,11.2,151.01,150.96,3.3638211]
[1729205913829,3.3121,150.99,150.96,3.3124]
[1729205914032,3.3121,150.99,150.96,6.5747193]
[1729205914328,3.3123,150.98,150.95,13.5128]
[1729205914829,3.3123,150.98,150.95,16.79996939]
[1729205916931,5.6,151.01,150.95,13.48716939]
[1729205917234,3.3121,150.99,150.96,3.3126]
[1729205925441,15.8,151.01,150.95,13.48716939]
[1729205925442,3.3122,150.98,150.95,16.79996939]
[1729205928743,11.2,151.01,150.97,10.2]
[1729205928949,3.312,150.99,150.97,10.2]
[1729205934744,3.3121,150.99,150.94,7.9129]
[1729205934945,10.2,151.0,150.95,10.2]
[1729205935443,3.3125,150.97,150.95,10.2]
[1729205940255,3.3125,150.97,150.95,13.5127]
[1729205940648,10.2,151.0,150.95,13.5127]
[1729205940849,3.3122,150.98,150.96,10.2]
[1729205942662,3.3122,150.98,150.96,13.5125]
[1729205945066,3.3119,150.99,150.96,13.5125]
[1729205945760,10.2,151.0,150.96,10.2]
[1729205946067,3.3119,151.0,150.97,3.3122]
[1729205946568,3.3119,151.0,150.97,13.5122]
[1729205947667,4.3116,151.01,150.98,3.3121]
[1729205949371,3.3117,151.0,150.97,13.5123]
[1729205951958,1.0,151.01,150.97,10.2]
[1729205952160,4.3117,151.01,150.98,3.3121]
[1729205956379,1.0,151.01,150.97,10.2]
[1729205956573,3.3118,151.0,150.97,13.5124]
[1729205960474,1.0,151.01,150.99,3.3118]
[1729205960680,1.0,151.01,150.99,13.5118]
[1729205961167,1.0,151.01,150.98,10.2]
[1729205961374,4.3115,151.01,150.98,13.512]
[1729205961676,11.2,151.01,150.94,10.74236476]
[1729205961870,3.3121,150.99,150.96,13.5124]
[1729205962171,1.0,151.01,150.98,10.2]
[1729205962367,1.0,151.01,151.0,13.5117]
[1729205962571,1.0,151.01,150.99,10.2]
[1729205963378,1.0,151.01,150.96,10.2]
[1729205963672,10.2,151.0,150.94,10.74236476]
[1729205963881,3.3119,150.99,150.96,13.5125]
[1729205964276,10.2,151.0,150.96,10.2]
[1729205964477,3.3123,150.98,150.96,10.2]
[1729205965471,3.3124,150.97,150.94,18.0929]
[1729205973083,3.3122,150.98,150.96,10.2]
[1729205974584,3.312,150.99,150.96,13.5124]
[1729205974786,3.312,150.99,150.96,10.2]
[1729205975873,3.312,150.99,150.97,3.3123]
[1729205976587,3.312,150.99,150.96,10.2]
[1729205976588,1.0,151.01,150.96,10.2]
[1729205976778,4.3116,151.01,150.98,3.312]
[1729205986099,11.2,151.01,150.96,10.2]
[1729205986298,10.2,151.0,150.95,10.2]
[1729205987288,3.3121,150.98,150.95,13.5126]
[1729205990600,10.2,150.99,150.94,10.2]
[1729205991294,3.3126,150.96,150.93,6.55280722]
[1729205991503,3.3126,150.96,150.93,16.75280722]
[1729205994500,3.3125,150.97,150.95,10.2]
[1729206000306,3.3121,150.99,150.96,13.5125]
[1729206000606,8.8993,151.0,150.96,13.5125]
[1729206000607,4.3193,151.0,150.96,13.5125]
[1729206000816,8.8993,151.0,150.96,13.5125]
[1729206001815,3.3121,150.99,150.96,3.3125]
[1729206002213,10.2,150.99,150.95,10.2]
[1729206002516,3.3123,150.98,150.95,13.5128]
[1729206002920,3.3123,150.98,150.95,3.3128]
[1729206004309,13.5123,150.98,150.95,3.3128]
[1729206006015,3.3123,150.98,150.95,3.3128]
[1729206009010,3.3123,150.98,150.95,3.3126]
[1729206015931,3.3124,150.97,150.94,10.2]
[1729206016932,3.3124,150.97,150.95,3.3128]
[1729206017630,3.3124,150.97,150.92,3.3133]
[1729206017631,3.3129,150.95,150.92,3.3133]
[1729206017830,10.2,150.95,150.9,3.2911454]
[1729206018132,10.2,150.94,150.9,10.2]
[1729206018330,10.2,150.94,150.9,13.54570834]
[1729206018525,14.78,150.94,150.9,13.54570834]
[1729206019125,3.3133,150.93,150.9,16.85940834]
[1729206021729,3.3135,150.92,150.9,10.2]
[1729206022044,3.3135,150.92,150.89,16.76072143]
[1729206026141,3.3138,150.91,150.89,3.24682143]
[1729206026348,10.2,150.92,150.86,4.58]
[1729206026537,10.2,150.92,150.87,10.2]
[1729206026737,10.2,150.91,150.86,14.78]
[1729206026936,3.3139,150.9,150.87,3.3144]
[1729206027137,10.2,150.91,150.86,10.2]
[1729206027138,14.78,150.91,150.86,10.2]
[1729206027739,3.3141,150.89,150.86,13.5146]
[1729206027932,14.78,150.91,150.84,136.2087598]
[1729206028138,3.3141,150.89,150.85,13.5149]
[1729206028538,3.3144,150.88,150.85,13.5149]
[1729206028940,3.3144,150.88,150.85,3.3149]
[1729206030249,10.2,150.88,150.84,136.2087598]
[1729206030845,3.3147,150.87,150.84,139.5238598]
[1729206031547,13.5144,150.88,150.84,139.5238598]
[1729206032251,10.2,150.88,150.84,139.5238598]
[1729206032748,14.78,150.88,150.85,3.315]
[1729206035565,14.78,150.88,150.86,3.3147]
[1729206036260,4.58,150.88,150.86,3.3147]
[1729206040659,14.78,150.88,150.86,3.3147]
[1729206043971,10.2,150.87,150.86,3.3147]
[1729206044671,14.78,150.88,150.86,3.3147]
[1729206051286,14.78,150.88,150.85,3.3149]
[1729206052475,10.2,150.87,150.85,3.3149]
[1729206056080,10.2,150.86,150.83,3.3153]
[1729206057079,10.2,150.86,150.81,11.559]
[1729206057380,10.2,150.84,150.82,3.3155]
[1729206062978,13.5155,150.83,150.8,3.3161]
[1729206063287,13.5155,150.83,150.8,3.34605006]
[1729206063588,13.5155,150.83,150.78,14.78]
[1729206064177,10.2,150.8,150.79,3.30846186]
[1729206065086,10.2,150.8,150.77,3.3166]
[1729206065488,10.2,150.8,150.75,10.2]
[1729206065791,10.2,150.84,150.79,10.2]
[1729206065990,10.2,150.81,150.74,4.58]
[1729206066293,13.5162,150.8,150.77,3.3166]
[1729206066986,3.3164,150.79,150.76,3.3169]
[1729206067493,3.3164,150.79,150.75,10.2]
[1729206067985,13.5162,150.8,150.77,3.3167]
[1729206068393,3.3165,150.79,150.76,3.3168]
[1729206069897,3.3165,150.79,150.75,10.2]
[1729206070097,3.3165,150.79,150.77,3.3167]
[1729206071395,3.3165,150.79,150.76,3.3168]
[1729206072306,13.5162,150.8,150.77,3.3167]
[1729206075094,13.5162,150.8,150.74,4.58]
[1729206075095,10.2,150.8,150.78,3.3164]
[1729206078403,3.3157,150.82,150.79,3.3162]
[1729206079291,14.8,150.83,150.79,10.2]
[1729206079486,3.3157,150.82,150.79,10.2]
[1729206079701,3.3157,150.82,150.78,10.2]
[1729206080201,3.3157,150.82,150.79,3.3162]
[1729206081488,4.6,150.83,150.79,3.3162]
[1729206081695,18.1154,150.83,150.8,3.316]
[1729206082011,4.6,150.83,150.74,4.58]
[1729206082302,10.2,150.81,150.79,3.3163]
[1729206082490,13.5158,150.82,150.79,3.3163]
[1729206085501,10.2,150.82,150.8,3.316]
[1729206086603,13.5157,150.82,150.8,3.316]
[1729206094311,13.5159,150.81,150.79,3.3162]
[1729206094513,10.2,150.81,150.79,3.3162]
[1729206097816,10.2,150.8,150.79,3.3162]
[1729206100518,13.5163,150.8,150.77,3.3167]
[1729206100719,10.2,150.78,150.77,3.3167]
[1729206101819,18.1163,150.8,150.77,3.3167]
[1729206109625,18.1163,150.8,150.78,3.3165]
[1729206114930,7.9163,150.8,150.78,3.3165]
[1729206115232,18.1163,150.8,150.78,3.3165]
[1729206118332,3.3164,150.79,150.75,3.3171]
[1729206118728,10.2,150.77,150.75,3.3171]
[1729206118925,10.2,150.76,150.74,3.3173]
[1729206119126,10.2,150.75,150.71,3.37080131]
[1729206119440,10.2,150.75,150.7,14.8]
[1729206119626,10.2,150.76,150.72,10.2]
[1729206120026,10.2,150.75,150.73,3.3175]
[1729206121230,10.2,150.75,150.7,7.89307693]
[1729206121534,10.2,150.75,150.72,3.3177]
[1729206121726,10.2,150.75,150.71,10.2]
[1729206121933,10.2,150.75,150.73,3.3175]
[1729206122629,10.2,150.75,150.71,10.2]
[1729206122630,10.2,150.75,150.74,3.3174]
[1729206130437,7.9168,150.77,150.74,3.3174]
[1729206130438,10.2,150.76,150.74,3.3174]
[1729206134034,10.2,150.76,150.75,3.3172]
[1729206137246,4.6,150.77,150.75,3.3172]
[1729206137438,10.2,150.76,150.75,3.3172]
[1729206138945,10.2,150.76,150.7,7.89307693]
[1729206139140,10.2,150.74,150.7,18.09307693]
[1729206139843,10.2,150.74,150.73,3.3175]
[1729206143846,10.2,150.74,150.72,3.3178]
[1729206144044,4.6,150.76,150.68,136.35271823]
[1729206144045,10.2,150.73,150.68,136.35271823]
[1729206144248,4.6,150.76,150.68,136.35271823]
[1729206144249,10.2,150.71,150.68,136.35271823]
[1729206144450,10.2,150.72,150.69,3.27248871]
[1729206144944,10.2,150.73,150.71,3.3179]
[1729206145339,10.2,150.74,150.7,13.47481198]
[1729206145640,4.6,150.76,150.71,10.2]
[1729206145836,14.8,150.76,150.71,10.2]
[1729206146041,13.5173,150.75,150.72,3.3177]
[1729206151051,4.3549,150.82,150.74,10.2]
[1729206151260,14.8,150.81,150.78,10.2]
[1729206151464,4.6,150.81,150.79,3.3162]
[1729206151643,4.6,150.81,150.77,10.2]
[1729206151849,10.2,150.78,150.72,2.799]
[1729206152150,10.2,150.77,150.75,3.3172]
[1729206152549,3.3166,150.78,150.75,3.3172]
[1729206152742,13.5166,150.78,150.75,3.3172]
[1729206154354,3.3166,150.78,150.75,3.3172]
[1729206154558,13.5166,150.78,150.75,3.3172]
[1729206156458,4.62,150.79,150.73,10.2]
[1729206156658,4.62,150.79,150.75,10.2]
[1729206156854,14.5549,150.82,150.72,7.399]
[1729206157053,10.2,150.78,150.75,3.3171]
[1729206157268,10.2,150.77,150.75,3.3171]
[1729206158565,3.3165,150.79,150.75,3.3171]
[1729206158764,10.2,150.78,150.76,3.3169]
[1729206171971,3.3165,150.79,150.76,3.3169]
[1729206172174,10.2,150.78,150.76,3.3169]
[1729206177474,4.3549,150.82,150.77,10.2]
[1729206177674,3.3159,150.81,150.78,3.3164]
[1729206177872,10.2,150.79,150.72,7.419]
[1729206178072,10.2,150.78,150.73,10.2]
[1729206178875,10.2,150.78,150.76,3.3169]
[1729206180579,4.62,150.79,150.77,3.3167]
[1729206180977,14.82,150.79,150.77,3.3167]
[1729206186688,18.1363,150.79,150.77,3.3167]
[1729206187683,14.82,150.79,150.74,10.2]
[1729206187984,10.2,150.75,150.71,3.3312342]
[1729206188184,10.2,150.72,150.67,11.6897]
[1729206188580,4.62,150.76,150.67,3.30336864]
[1729206188581,10.2,150.71,150.67,3.30336864]
[1729206188788,10.2,150.71,150.64,2.9122]
[1729206188789,10.2,150.7,150.66,4.62]
[1729206188998,10.2,150.7,150.67,3.3188]
[1729206190985,10.2,150.7,150.68,3.3187]
[1729206192091,10.2,150.69,150.68,3.3187]
[1729206192386,10.2,150.7,150.68,3.3187]
[1729206209503,10.2,150.7,150.68,3.3185]
[1729206219918,4.62,150.72,150.67,10.2]
[1729206220122,14.82,150.72,150.67,10.2]
[1729206220420,10.2,150.71,150.69,3.3184]
[1729206221122,10.2,150.71,150.69,6.67861916]
[1729206221811,10.2,150.71,150.65,14.86]
[1729206222128,10.2,150.7,150.68,3.3186]
[1729206225122,13.5183,150.7,150.65,7.97596382]
[1729206226029,13.5183,150.7,150.67,3.3189]
[1729206227831,10.2,150.68,150.66,3.3191]
[1729206229932,10.2,150.68,150.67,3.319]
[1729206230621,10.2,150.69,150.68,3.3186]
[1729206231125,10.2,150.69,150.65,18.17596382]
[1729206231423,10.2,150.69,150.67,3.3188]
[1729206232519,10.2,150.68,150.67,3.3188]
[1729206236338,10.2,150.68,150.65,7.97596382]
[1729206236539,10.2,150.68,150.66,3.319]
[1729206240240,10.2,150.67,150.65,6.63526382]
[1729206240634,10.2,150.66,150.64,136.39120696]
[1729206240836,10.2,150.65,150.64,136.39120696]
[1729206241237,10.2,150.65,150.64,139.72266124]
[1729206241434,10.2,150.65,150.64,136.39120696]
[1729206243147,10.2,150.65,150.57,1.4376]
[1729206243443,10.2,150.63,150.58,14.86]
[1729206244039,10.2,150.63,150.62,3.32]
[1729206244236,10.2,150.63,150.58,4.66]
[1729206244741,3.3196,150.65,150.61,3.3201]
[1729206245041,10.2,150.64,150.59,10.2]
[1729206245740,10.2,150.64,150.62,3.3199]
[1729206246641,7.9792,150.66,150.62,3.3199]
[1729206246943,10.2,150.63,150.62,3.3199]
[1729206250642,7.9391,150.67,150.61,10.2]
[1729206250844,10.2,150.65,150.61,10.2]
[1729206251041,10.2,150.64,150.61,10.2]
[1729206251639,10.2,150.64,150.6,10.2]
[1729206251844,10.2,150.64,150.63,3.3198]
[1729206253344,10.2,150.64,150.63,6.56624957]
[1729206253548,4.62,150.67,150.64,3.3195]
[1729206253842,10.2,150.65,150.64,3.3195]
[1729206254749,4.62,150.67,150.65,3.3194]
[1729206254953,10.2,150.66,150.61,10.2]
[1729206255149,10.2,150.66,150.6,10.2]
[1729206255342,10.2,150.64,150.6,10.2]
[1729206256158,7.939,150.67,150.63,3.3197]
[1729206256342,10.2,150.64,150.63,6.68269478]
[1729206256535,10.2,150.64,150.63,3.3197]
[1729206256744,10.2,150.65,150.59,4.62]
[1729206256947,10.2,150.65,150.6,10.2]
[1729206257347,10.2,150.65,150.61,3.3202]
[1729206257549,10.2,150.65,150.6,10.2]
[1729206258251,10.2,150.64,150.62,3.3198]
[1729206263259,3.3193,150.66,150.62,3.3198]
[1729206263459,10.2,150.64,150.62,3.3198]
[1729206265158,10.2,150.64,150.63,3.3198]
[1729206266857,10.2,150.64,150.62,3.32]
[1729206267766,10.2,150.63,150.62,3.32]
[1729206272554,10.2,150.64,150.62,3.32]